fUST/lending_fUST_20250908
["ID","MTS","AMOUNT","RATE_DAILY","PERIOD"]
[384298144,1757325048227,-151.0,0.00013972,2]
[384298146,1757325048236,-151.0,0.00013972,2]
[384298148,1757325048245,-480.0,0.00013972,2]
[384298150,1757325048255,-480.0,0.00013972,2]
[384298152,1757325048264,-480.0,0.00013972,2]
[384298154,1757325048274,-480.0,0.00013972,2]
[384298156,1757325048283,-480.0,0.00013972,2]
[384298158,1757325048292,-480.0,0.00013972,2]
[384298160,1757325048302,-480.0,0.00013972,2]
[384298162,1757325048311,-483.09089622,0.00013972,2]
[384298164,1757325048320,-480.0,0.00013972,2]
[384298166,1757325048330,-480.0,0.00013972,2]
[384298168,1757325048339,-480.0,0.00013972,2]
[384298169,1757325048348,-162.497089,0.00013972,2]
[384298172,1757325048357,-480.0,0.00013972,2]
[384298173,1757325048367,-480.0,0.00013972,2]
[384298176,1757325048376,-480.0,0.00013972,2]
[384298178,1757325048386,-480.0,0.00013972,2]
[384298179,1757325048396,-3132.38,0.00013972,2]
[384298181,1757325048405,-480.0,0.00013972,2]
[384298183,1757325048414,-510.35495562,0.00013972,2]
[384298185,1757325048424,-480.0,0.00013972,2]
[384298187,1757325048434,-701.6,0.00013972,2]
[384298189,1757325048443,-480.0,0.00013972,2]
[384298190,1757325048454,-480.0,0.00013972,2]
[384298191,1757325048463,-480.0,0.00013972,2]
[384298192,1757325048473,-480.0,0.00013972,2]
[384298193,1757325048482,-480.0,0.00013972,2]
[384298194,1757325048491,-480.0,0.00013972,2]
[384298195,1757325048500,-380.25315538,0.00013972,2]
[384298196,1757325048510,-480.0,0.00013972,2]
[384298197,1757325048520,-480.0,0.00013972,2]
[384298198,1757325048529,-480.0,0.00013972,2]
[384298199,1757325048539,-480.0,0.00013972,2]
[384298200,1757325048548,-364.27103895,0.00013972,2]
[384298201,1757325048557,-480.0,0.00013972,2]
[384298202,1757325048567,-480.0,0.00013972,2]
[384298203,1757325048576,-480.0,0.00013972,2]
[384298204,1757325048586,-151.0,0.00013972,2]
[384298205,1757325048595,-480.0,0.00013972,2]
[384298206,1757325048605,-343.98072104,0.00013972,2]
[384298207,1757325048614,-480.0,0.00013972,2]
[384298208,1757325048624,-480.0,0.00013972,2]
[384298209,1757325048633,-616.46935791,0.00013972,2]
[384298210,1757325048643,-151.0,0.00013972,2]
[384298212,1757325048652,-480.0,0.00013972,2]
[384298214,1757325048662,-480.0,0.00013972,2]
[384298216,1757325048673,-480.0,0.00013972,2]
[384298218,1757325048683,-480.0,0.00013972,2]
[384298220,1757325048692,-480.0,0.00013972,2]
[384298222,1757325048702,-480.0,0.00013972,2]
[384298224,1757325048712,-766.08,0.00013972,2]
[384298226,1757325048720,-480.0,0.00013972,2]
[384298228,1757325048730,-781.29,0.00013972,2]
[384298230,1757325048739,-480.0,0.00013972,2]
[384298232,1757325048749,-151.864238,0.00013972,2]
[384298234,1757325048758,-480.0,0.00013972,2]
[384298236,1757325048768,-480.0,0.00013972,2]
[384298238,1757325048777,-480.0,0.00013972,2]
[384298240,1757325048786,-480.0,0.00013972,2]
[384298242,1757325048796,-236.86474853,0.00013972,2]
[384298244,1757325048805,-480.0,0.00013972,2]
[384298246,1757325048814,-482.29679491,0.00013972,2]
[384298248,1757325048824,-480.0,0.00013972,2]
[384298250,1757325048834,-1448.46,0.00013972,2]
[384298252,1757325048843,-480.0,0.00013972,2]
[384298254,1757325048852,-480.0,0.00013972,2]
[384298256,1757325048862,-480.0,0.00013972,2]
[384298258,1757325048871,-624.58,0.00013972,2]
[384298260,1757325048881,-151.0,0.00013972,2]
[384298262,1757325048891,-185.13441732,0.00013972,2]
[384298264,1757325048901,-2788.52,0.00013972,2]
[384298266,1757325048911,-480.0,0.00013972,2]
[384298268,1757325048920,-484.77696479,0.00013972,2]
[384298270,1757325048930,-480.0,0.00013972,2]
[384298272,1757325048939,-480.0,0.00013972,2]
[384298274,1757325048948,-480.0,0.00013972,2]
[384298276,1757325048958,-480.0,0.00013972,2]
[384298278,1757325048967,-480.0,0.00013972,2]
[384298280,1757325048976,-480.0,0.00013972,2]
[384298282,1757325048985,-480.0,0.00013972,2]
[384298284,1757325048995,-480.0,0.00013972,2]
[384298286,1757325049005,-480.0,0.00013972,2]
[384298288,1757325049014,-480.0,0.00013972,2]
[384298290,1757325049023,-480.0,0.00013972,2]
[384298292,1757325049032,-810.02,0.00013972,2]
[384298294,1757325049042,-1545.48,0.00013972,2]
[384298296,1757325049052,-480.39649784,0.00013972,2]
[384298298,1757325049061,-480.0,0.00013972,2]
[384298300,1757325049070,-480.0,0.00013972,2]
[384298302,1757325049080,-480.0,0.00013972,2]
[384298304,1757325049089,-480.0,0.00013972,2]
[384298306,1757325049098,-480.0,0.00013972,2]
[384298308,1757325049108,-480.0,0.00013972,2]
[384298310,1757325049117,-151.0,0.00013972,2]
[384298312,1757325049126,-480.0,0.00013972,2]
[384298314,1757325049135,-244.030208,0.00013972,2]
[384298316,1757325049145,-480.0,0.00013972,2]
[384298318,1757325049155,-480.0,0.00013972,2]
[384298320,1757325049166,-151.0,0.00013972,2]
[384298322,1757325049176,-480.0,0.00013972,2]
[384298324,1757325049185,-480.0,0.00013972,2]
[384298326,1757325049194,-480.0,0.00013972,2]
[384298328,1757325049203,-480.0,0.00013972,2]
[384298330,1757325049212,-480.95017551,0.00013972,2]
[384298332,1757325049221,-151.0,0.00013972,2]
[384298334,1757325049230,-480.0,0.00013972,2]
[384298335,1757325049239,-151.0,0.00013972,2]
[384298337,1757325049248,-480.0,0.00013972,2]
[384298340,1757325049258,-151.0,0.00013972,2]
[384298342,1757325049268,-480.0,0.00013972,2]
[384298343,1757325049277,-480.0,0.00013972,2]
[384298345,1757325049287,-151.0,0.00013972,2]
[384298347,1757325049297,-480.0,0.00013972,2]
[384298349,1757325049307,-151.0,0.00013972,2]
[384298352,1757325049317,-480.0,0.00013972,2]
[384298354,1757325049327,-500.0,0.00013973,2]
[384298356,1757325049336,-500.0,0.00013973,2]
[384298358,1757325049345,-405.36737293,0.00013973,2]
[384298359,1757325049354,-500.0,0.00013973,2]
[384298361,1757325049363,-500.0,0.00013973,2]
[384298374,1757325049471,-500.0,0.00013973,2]
[384298376,1757325049482,-500.0,0.00013973,2]
[384298378,1757325049491,-500.0,0.00013973,2]
[384298380,1757325049500,-500.0,0.00013973,2]
[384298382,1757325049509,-200.63521851,0.00013973,2]
[384298384,1757325049520,-80299.54169062,0.0001399,2]
[384298386,1757325049529,-151.0,0.0001399,2]
[384298388,1757325049539,-151.0,0.0001399,2]
[384298390,1757325049549,-151.0,0.0001399,2]
[384298392,1757325049559,-151.0,0.0001399,2]
[384298394,1757325049568,-151.0,0.0001399,2]
[384298396,1757325049577,-151.0,0.0001399,2]
[384298398,1757325049589,-151.0,0.0001399,2]
[384298400,1757325049598,-151.0,0.0001399,2]
[384298402,1757325049608,-151.0,0.0001399,2]
[384298404,1757325049617,-151.0,0.0001399,2]
[384298406,1757325049627,-151.0,0.0001399,2]
[384298408,1757325049636,-151.0,0.0001399,2]
[384298411,1757325049647,-157.68064,0.0001399,2]
[384298413,1757325049656,-151.0,0.0001399,2]
[384298414,1757325049665,-151.0,0.0001399,2]
[384298417,1757325049679,-151.0,0.0001399,2]
[384298418,1757325049688,-201.454408,0.0001399,2]
[384298420,1757325049698,-151.0,0.0001399,2]
[384298423,1757325049707,-500.0,0.00014026,2]
[384298425,1757325049717,-500.0,0.00014118,2]
[384298427,1757325049727,-160.0,0.00014195,2]
[384298429,1757325049737,-217.62647793,0.00014195,2]
[384298430,1757325049746,-530.71506861,0.00014195,2]
[384298432,1757325049757,-203.26219058,0.00014195,2]
[384298434,1757325049767,-160.0,0.00014195,2]
[384298436,1757325049776,-233.03190505,0.00014195,2]
[384298439,1757325049786,-846.71598105,0.00014195,2]
[384298441,1757325049797,-500.0,0.00014221,2]
[384298443,1757325049807,-1000.0,0.00014221,2]
[384298444,1757325049818,-278.86866877,0.00014221,2]
[384298447,1757325049829,-480.0,0.00014246,2]
[384298449,1757325049839,-294.65739973,0.00014246,2]
[384298450,1757325049849,-480.0,0.00014246,2]
[384298453,1757325049858,-480.0,0.00014246,2]
[384298455,1757325049868,-416.04,0.00014246,2]
[384298457,1757325049877,-480.0,0.00014246,2]
[384298459,1757325049887,-480.0,0.00014246,2]
[384298461,1757325049896,-480.0,0.00014246,2]
[384298462,1757325049906,-336.07683909,0.00014246,2]
[384298465,1757325049916,-480.0,0.00014246,2]
[384298467,1757325049925,-480.0,0.00014246,2]
[384298468,1757325049935,-480.0,0.00014246,2]
[384298471,1757325049944,-395.79827353,0.00014246,2]
[384298473,1757325049954,-480.0,0.00014246,2]
[384298475,1757325049963,-480.0,0.00014246,2]
[384298477,1757325049972,-480.0,0.00014246,2]
[384298478,1757325049982,-151.0,0.00014246,2]
[384298480,1757325049991,-480.0,0.00014246,2]
[384298483,1757325050001,-480.0,0.00014246,2]
[384298485,1757325050010,-480.0,0.00014246,2]
[384298487,1757325050020,-480.0,0.00014246,2]
[384298489,1757325050029,-480.0,0.00014246,2]
[384298491,1757325050038,-480.0,0.00014246,2]
[384298492,1757325050047,-151.0,0.00014246,2]
[384298494,1757325050057,-151.0,0.00014246,2]
[384298496,1757325050066,-480.0,0.00014246,2]
[384298499,1757325050076,-213.79,0.00014246,2]
[384298501,1757325050085,-480.0,0.00014246,2]
[384298503,1757325050095,-480.0,0.00014246,2]
[384298505,1757325050105,-480.0,0.00014246,2]
[384298506,1757325050114,-218.79641822,0.00014246,2]
[384298508,1757325050123,-480.0,0.00014246,2]
[384298511,1757325050133,-511.2,0.00014246,2]
[384298513,1757325050142,-480.0,0.00014246,2]
[384298514,1757325050153,-480.0,0.00014246,2]
[384298516,1757325050161,-480.0,0.00014246,2]
[384298518,1757325050171,-552.31,0.00014246,2]
[384298520,1757325050180,-151.0,0.00014246,2]
[384298522,1757325050189,-480.0,0.00014246,2]
[384298524,1757325050198,-480.0,0.00014246,2]
[384298526,1757325050208,-480.0,0.00014246,2]
[384298528,1757325050218,-480.0,0.00014246,2]
[384298530,1757325050227,-480.0,0.00014246,2]
[384298532,1757325050236,-480.0,0.00014246,2]
[384298534,1757325050245,-480.0,0.00014246,2]
[384298536,1757325050254,-480.0,0.00014246,2]
[384298538,1757325050264,-480.0,0.00014246,2]
[384298540,1757325050273,-480.0,0.00014246,2]
[384298542,1757325050283,-480.0,0.00014246,2]
[384298544,1757325050292,-480.0,0.00014246,2]
[384298546,1757325050301,-480.0,0.00014246,2]
[384298548,1757325050310,-480.0,0.00014246,2]
[384298550,1757325050320,-532.65,0.00014246,2]
[384298552,1757325050329,-480.0,0.00014246,2]
[384298554,1757325050338,-480.0,0.00014246,2]
[384298556,1757325050347,-480.0,0.00014246,2]
[384298558,1757325050357,-480.0,0.00014246,2]
[384298560,1757325050367,-480.0,0.00014246,2]
[384298562,1757325050376,-345.5243182,0.00014246,2]
[384298564,1757325050385,-547.78,0.00014246,2]
[384298566,1757325050395,-480.0,0.00014246,2]
[384298568,1757325050405,-480.0,0.00014246,2]
[384298570,1757325050414,-480.0,0.00014246,2]
[384298572,1757325050423,-480.0,0.00014246,2]
[384298574,1757325050432,-480.0,0.00014246,2]
[384298577,1757325050442,-151.0,0.00014246,2]
[384298579,1757325050451,-480.0,0.00014246,2]
[384298581,1757325050461,-480.0,0.00014246,2]
[384298582,1757325050471,-495.93,0.00014246,2]
[384298584,1757325050481,-480.0,0.00014246,2]
[384298587,1757325050491,-480.0,0.00014246,2]
[384298589,1757325050501,-480.0,0.00014246,2]
[384298591,1757325050510,-480.0,0.00014246,2]
[384298592,1757325050520,-480.0,0.00014246,2]
[384298593,1757325050529,-342.86838726,0.00014246,2]
[384298594,1757325050538,-480.0,0.00014246,2]
[384298595,1757325050547,-480.0,0.00014246,2]
[384298596,1757325050556,-480.0,0.00014246,2]
[384298597,1757325050566,-480.0,0.00014246,2]
[384298598,1757325050575,-480.0,0.00014246,2]
[384298599,1757325050585,-189.937431,0.00014246,2]
[384298600,1757325050595,-480.0,0.00014246,2]
[384298601,1757325050604,-480.0,0.00014246,2]
[384298602,1757325050613,-480.0,0.00014246,2]
[384298603,1757325050622,-552.89720791,0.00014246,2]
[384298604,1757325050631,-480.0,0.00014246,2]
[384298605,1757325050640,-480.0,0.00014246,2]
[384298606,1757325050650,-480.0,0.00014246,2]
[384298607,1757325050659,-480.0,0.00014246,2]
[384298608,1757325050668,-1073.53,0.00014246,2]
[384298609,1757325050682,-480.0,0.00014246,2]
[384298610,1757325050692,-486.15204353,0.00014246,2]
[384298611,1757325050702,-480.0,0.00014246,2]
[384298612,1757325050711,-486.69000798,0.00014246,2]
[384298613,1757325050721,-480.0,0.00014246,2]
[384298614,1757325050729,-510.3548356,0.00014246,2]
[384298615,1757325050738,-480.0,0.00014246,2]
[384298616,1757325050748,-480.0,0.00014246,2]
[384298617,1757325050758,-480.0,0.00014246,2]
[384298618,1757325050768,-480.0,0.00014246,2]
[384298619,1757325050777,-480.0,0.00014246,2]
[384298620,1757325050787,-480.0,0.00014246,2]
[384298621,1757325050796,-480.0,0.00014246,2]
[384298622,1757325050805,-480.0,0.00014246,2]
[384298623,1757325050815,-480.0,0.00014246,2]
[384298624,1757325050824,-480.0,0.00014246,2]
[384298625,1757325050833,-480.0,0.00014246,2]
[384298626,1757325050842,-480.0,0.00014246,2]
[384298627,1757325050852,-480.0,0.00014246,2]
[384298628,1757325050861,-729.63,0.00014246,2]
[384298629,1757325050870,-480.0,0.00014246,2]
[384298630,1757325050880,-585.17229804,0.00014246,2]
[384298631,1757325050890,-1316.43,0.00014246,2]
[384298632,1757325050900,-480.0,0.00014246,2]
[384298633,1757325050910,-480.0,0.00014246,2]
[384298634,1757325050919,-1053.1,0.00014246,2]
[384298635,1757325050929,-480.0,0.00014246,2]
[384298636,1757325050939,-480.0,0.00014246,2]
[384298637,1757325050948,-288.94580305,0.00014246,2]
[384298638,1757325050958,-480.0,0.00014246,2]
[384298639,1757325050967,-480.0,0.00014246,2]
[384298640,1757325050977,-704.89,0.00014246,2]
[384298641,1757325050987,-875.19,0.00014246,2]
[384298642,1757325050996,-480.0,0.00014246,2]
[384298643,1757325051007,-480.0,0.00014246,2]
[384298644,1757325051016,-480.0,0.00014246,2]
[384298645,1757325051025,-480.0,0.00014246,2]
[384298646,1757325051035,-480.0,0.00014246,2]
[384298647,1757325051044,-480.0,0.00014246,2]
[384298648,1757325051053,-480.0,0.00014246,2]
[384298649,1757325051063,-480.0,0.00014246,2]
[384298650,1757325051072,-480.0,0.00014246,2]
[384298651,1757325051082,-480.0,0.00014246,2]
[384298652,1757325051092,-480.0,0.00014246,2]
[384298653,1757325051102,-480.0,0.00014246,2]
[384298654,1757325051111,-480.0,0.00014246,2]
[384298655,1757325051121,-3132.38,0.00014246,2]
[384298656,1757325051131,-443.69506373,0.00014246,2]
[384298657,1757325051140,-480.0,0.00014246,2]
[384298658,1757325051150,-701.6,0.00014246,2]
[384298659,1757325051159,-258.80036864,0.00014246,2]
[384298660,1757325051169,-480.0,0.00014246,2]
[384298661,1757325051178,-480.0,0.00014246,2]
[384298662,1757325051187,-480.0,0.00014246,2]
[384298663,1757325051197,-480.0,0.00014246,2]
[384298664,1757325051206,-480.0,0.00014246,2]
[384298665,1757325051215,-480.0,0.00014246,2]
[384298666,1757325051224,-480.0,0.00014246,2]
[384298667,1757325051234,-480.0,0.00014246,2]
[384298668,1757325051245,-480.0,0.00014246,2]
[384298669,1757325051254,-480.0,0.00014246,2]
[384298670,1757325051264,-480.0,0.00014246,2]
[384298671,1757325051273,-480.0,0.00014246,2]
[384298672,1757325051282,-766.08,0.00014246,2]
[384298673,1757325051291,-480.0,0.00014246,2]
[384298674,1757325051300,-781.29,0.00014246,2]
[384298675,1757325051310,-390.4391109,0.00014246,2]
[384298676,1757325051367,-89.5608891,0.00014246,2]
[384298677,1757325051376,-480.0,0.00014246,2]
[384298678,1757325051386,-490.196354,0.00014246,2]
[384298679,1757325051395,-480.0,0.00014246,2]
[384298680,1757325051405,-480.0,0.00014246,2]
[384298681,1757325051415,-480.0,0.00014246,2]
[384298682,1757325051424,-1448.46,0.00014246,2]
[384298683,1757325051434,-480.0,0.00014246,2]
[384298684,1757325051444,-2788.52,0.00014246,2]
[384298685,1757325051454,-480.0,0.00014246,2]
[384298686,1757325051464,-480.0,0.00014246,2]
[384298687,1757325051473,-480.0,0.00014246,2]
[384298688,1757325051483,-480.0,0.00014246,2]
[384298689,1757325051493,-480.0,0.00014246,2]
[384298690,1757325051504,-480.0,0.00014246,2]
[384298691,1757325051513,-480.0,0.00014246,2]
[384298692,1757325051523,-480.0,0.00014246,2]
[384298693,1757325051532,-810.02,0.00014246,2]
[384298694,1757325051541,-1545.48,0.00014246,2]
[384298695,1757325051551,-480.0,0.00014246,2]
[384298696,1757325051560,-480.0,0.00014246,2]
[384298697,1757325051569,-480.0,0.00014246,2]
[384298698,1757325051579,-480.0,0.00014246,2]
[384298699,1757325051589,-608.43,0.00014246,2]
[384298700,1757325051598,-480.0,0.00014246,2]
[384298701,1757325051608,-480.0,0.00014246,2]
[384298702,1757325051618,-482.64239556,0.00014246,2]
[384298703,1757325051721,-480.0,0.00014246,2]
[384298704,1757325051731,-480.0,0.00014246,2]
[384298705,1757325051742,-212.75442786,0.00014246,2]
[384298706,1757325051754,-267.24557214,0.00014246,2]
[384298707,1757325051765,-480.0,0.00014246,2]
[384298708,1757325051775,-480.0,0.00014246,2]
[384298709,1757325051784,-480.0,0.00014246,2]
[384298710,1757325051793,-13803.1550705,0.00014451,2]
[384298711,1757325051803,-203.72,0.0001452,2]
[384298712,1757325051812,-486.54,0.0001452,2]
[384298713,1757325051822,-480.0,0.0001452,2]
[384298714,1757325051831,-480.0,0.0001452,2]
[384298715,1757325051842,-480.0,0.0001452,2]
[384298716,1757325051854,-480.0,0.0001452,2]
[384298717,1757325051864,-480.0,0.0001452,2]
[384298718,1757325051874,-623.85,0.0001452,2]
[384298719,1757325051884,-480.0,0.0001452,2]
[384298720,1757325051894,-480.0,0.0001452,2]
[384298721,1757325051903,-152.01,0.0001452,2]
[384298722,1757325051913,-207.82,0.0001452,2]
[384298723,1757325051922,-267.24,0.0001452,2]
[384298724,1757325051931,-480.0,0.0001452,2]
[384298725,1757325051941,-480.0,0.0001452,2]
[384298726,1757325051951,-480.0,0.0001452,2]
[384298727,1757325051960,-1073.53,0.0001452,2]
[384298728,1757325051970,-480.0,0.0001452,2]
[384298729,1757325051979,-480.0,0.0001452,2]
[384298730,1757325051988,-480.0,0.0001452,2]
[384298731,1757325051998,-507.87355468,0.0001452,2]
[384298732,1757325052007,-480.0,0.0001452,2]
[384298733,1757325052016,-480.0,0.0001452,2]
[384298734,1757325052026,-480.0,0.0001452,2]
[384298735,1757325052036,-729.63,0.0001452,2]
[384298736,1757325052045,-1316.43,0.0001452,2]
[384298737,1757325052054,-480.0,0.0001452,2]
[384298738,1757325052064,-491.41686908,0.0001452,2]
[384298739,1757325052076,-561.68313092,0.0001452,2]
[384298740,1757325052086,-480.0,0.0001452,2]
[384298741,1757325052097,-704.89,0.0001452,2]
[384298742,1757325052106,-875.19,0.0001452,2]
[384298743,1757325052115,-480.0,0.0001452,2]
[384298744,1757325052125,-480.0,0.0001452,2]
[384298745,1757325052135,-480.0,0.0001452,2]
[384298746,1757325052144,-480.0,0.0001452,2]
[384298747,1757325052153,-480.0,0.0001452,2]
[384298748,1757325052163,-452.66,0.0001452,2]
[384298749,1757325052172,-480.0,0.0001452,2]
[384298750,1757325052182,-480.0,0.0001452,2]
[384298751,1757325052191,-480.0,0.0001452,2]
[384298752,1757325052201,-3132.38,0.0001452,2]
[384298753,1757325052211,-480.0,0.0001452,2]
[384298754,1757325052220,-701.6,0.0001452,2]
[384298755,1757325052229,-480.0,0.0001452,2]
[384298756,1757325052239,-480.0,0.0001452,2]
[384298757,1757325052248,-480.0,0.0001452,2]
[384298758,1757325052257,-480.0,0.0001452,2]
[384298759,1757325052267,-480.0,0.0001452,2]
[384298760,1757325052278,-480.0,0.0001452,2]
[384298761,1757325052288,-766.08,0.0001452,2]
[384298762,1757325052297,-613.75581239,0.0001452,2]
[384298763,1757325052310,-167.53418761,0.0001452,2]
[384298764,1757325052319,-480.0,0.0001452,2]
[384298765,1757325052329,-24.24518074,0.0001452,2]
[384298766,1757325052344,-496.7056075,0.0001452,2]
[384298767,1757325052438,-188.59497286,0.00013698,2]
[384298768,1757325052448,-927.50921176,0.0001452,2]
[384298769,1757325052457,-178.38,0.0001452,2]
[384298770,1757325052468,-89.77298738,0.0001452,2]
[384298771,1757325052479,-2698.74701262,0.0001452,2]
[384298772,1757325052488,-480.0,0.0001452,2]
[384298773,1757325052498,-480.0,0.0001452,2]
[384298774,1757325052508,-234.85985815,0.0001452,2]
[384298775,1757325052517,-480.0,0.0001452,2]
[384298776,1757325052526,-810.02,0.0001452,2]
[384298777,1757325052535,-1545.48,0.0001452,2]
[384298778,1757325052545,-480.0,0.0001452,2]
[384298779,1757325052554,-522.3804249,0.0001452,2]
[384298780,1757325052564,-1000.0,0.00014521,2]
[384298781,1757325052574,-1000.0,0.00014521,2]
[384298782,1757325052583,-1000.0,0.00014521,2]
[384298783,1757325052592,-168.593465,0.00014573,2]
[384298784,1757325052602,-151.0,0.00014573,2]
[384298785,1757325052612,-500.0,0.00014666,2]
[384298786,1757325052621,-69.36405633,0.00014753,2]
[384298787,1757325052632,-430.63594367,0.00014753,2]
[384298788,1757325052641,-500.0,0.00014753,2]
[384298789,1757325052652,-500.19224193,0.00014753,2]
[384298790,1757325052660,-500.0,0.00014753,2]
[384298791,1757325052669,-156.99959266,0.00014764,2]
[384298792,1757325052984,-263.00040734,0.00014764,2]
[384298793,1757325052994,-1500.0,0.00014768,2]
[384298794,1757325053003,-561.26,0.00014794,2]
[384298795,1757325053012,-459.07,0.00014794,2]
[384298796,1757325053022,-413.68,0.00014794,2]
[384298797,1757325053031,-480.0,0.00014794,2]
[384298798,1757325053040,-192.84,0.00014794,2]
[384298799,1757325053050,-480.0,0.00014794,2]
[384298800,1757325053059,-480.0,0.00014794,2]
[384298801,1757325053068,-480.0,0.00014794,2]
[384298802,1757325053078,-480.0,0.00014794,2]
[384298803,1757325053087,-480.0,0.00014794,2]
[384298804,1757325053096,-480.0,0.00014794,2]
[384298805,1757325053106,-183.37,0.00014794,2]
[384298806,1757325053116,-480.0,0.00014794,2]
[384298807,1757325053125,-729.63,0.00014794,2]
[384298808,1757325053135,-292.451516,0.00014794,2]
[384298809,1757325053144,-1316.43,0.00014794,2]
[384298810,1757325053154,-567.97,0.00014794,2]
[384298811,1757325053163,-1053.1,0.00014794,2]
[384298812,1757325053173,-151.0,0.00014794,2]
[384298813,1757325053182,-158.49,0.00014794,2]
[384298814,1757325053191,-704.89,0.00014794,2]
[384298815,1757325053200,-875.19,0.00014794,2]
[384298816,1757325053210,-480.0,0.00014794,2]
[384298817,1757325053219,-480.0,0.00014794,2]
[384298818,1757325053228,-151.0,0.00014794,2]
[384298819,1757325053238,-151.0,0.00014794,2]
[384298820,1757325053247,-480.0,0.00014794,2]
[384298821,1757325053256,-480.0,0.00014794,2]
[384298822,1757325053266,-480.0,0.00014794,2]
[384298823,1757325053276,-480.0,0.00014794,2]
[384298824,1757325053285,-195.94,0.00014794,2]
[384298825,1757325053295,-3132.38,0.00014794,2]
[384298826,1757325053304,-480.0,0.00014794,2]
[384298827,1757325053314,-701.6,0.00014794,2]
[384298828,1757325053323,-480.0,0.00014794,2]
[384298829,1757325053332,-480.0,0.00014794,2]
[384298830,1757325053342,-480.0,0.00014794,2]
[384298831,1757325053351,-480.0,0.00014794,2]
[384298832,1757325053360,-172.314232,0.00014794,2]
[384298833,1757325053370,-480.0,0.00014794,2]
[384298834,1757325053379,-766.08,0.00014794,2]
[384298835,1757325053388,-781.29,0.00014794,2]
[384298836,1757325053398,-480.0,0.00014794,2]
[384298837,1757325053408,-1448.46,0.00014794,2]
[384298838,1757325053417,-2788.52,0.00014794,2]
[384298839,1757325053427,-480.0,0.00014794,2]
[384298840,1757325053436,-480.0,0.00014794,2]
[384298841,1757325053446,-480.0,0.00014794,2]
[384298842,1757325053455,-810.02,0.00014794,2]
[384298843,1757325053465,-1545.48,0.00014794,2]
[384298844,1757325053474,-480.0,0.00014794,2]
[384298845,1757325053484,-151.0,0.00014794,2]
[384298846,1757325053493,-151.0,0.00014794,2]
[384298847,1757325053502,-151.0,0.00014794,2]
[384298848,1757325053512,-151.0,0.00014794,2]
[384298849,1757325053522,-151.0,0.00014794,2]
[384298850,1757325053531,-500.0,0.000148,10]
[384298851,1757325053540,-151.0,0.0001499,2]
[384298852,1757325053550,-155.378255,0.0001499,2]
[384298853,1757325053559,-151.0,0.0001499,2]
[384298854,1757325053568,-151.0,0.0001499,2]
[384298855,1757325053577,-160.0,0.00015,2]
[384298856,1757325053587,-480.0,0.00015068,2]
[384298857,1757325053596,-403.04,0.00015068,2]
[384298858,1757325053606,-480.0,0.00015068,2]
[384298859,1757325053615,-332.5,0.00015068,2]
[384298860,1757325053625,-196.07322629,0.00015068,2]
[384298861,1757325053634,-480.0,0.00015068,2]